Cogmind - Beta 9.4 @@@ ROGUE MODE // 2020.01.17 @ 16:05:08 Player: Hermelin Result: Destroyed by S-27 Virus with Autogun Performance ------------- Evolutions (3) 1500 Regions Visited (7) 1400 Robots Destroyed (57) 285 Value Destroyed (1854) 1854 Prototype IDs (31) 620 Alien Tech Used (0) 0 Bonus (241) 241 TOTAL SCORE: 5900 Bonus ------- Follower Combat Kills 138 Aligned with FarCom 300 Friendly Fire -197 Cogmind --------- Core Integrity 0/700 Matter 294/300 Energy 144/290 System Corruption 6% Temperature Cool (0) Movement Flying (197) Ox2 Location -7/Lower Caves Parts ------- > --- POWER (1) -------- Improved Deuterium Engine > --- PROPULSION (3) --- VTOL Module VTOL Module > --- UTILITY (5) ------ Advanced Signal Interpreter Microactuators Actuator Array > --- WEAPON (4) ------- Mini Assault Cannon Mace Makeshift Spear > --- INVENTORY (4) ---- Compact Battery (300) Latent Energy Streamer Flamer Peak State ------------ > --- POWER ------------ Micro Nuclear Core > --- PROPULSION ------- Light Treads Advanced Treads VTOL Module > --- UTILITY ---------- Improved Heat Sink Medium Storage Unit Advanced Signal Interpreter Microactuators Layered Light Armor Plating > --- WEAPON ----------- Improved Spread Laser Advanced Assault Cannon Mini Assault Cannon Power Maul > --- INVENTORY -------- Light Deuterium Engine VTOL Module Actuator Array Improved Spread Laser Latent Energy Streamer Heavy Assault Rifle Gauss Rifle Power Maul [Rating: 46] Favorites ----------- Power Light Ion Engine Engine Light Ion Engine Power Core Light Nuclear Core Propulsion Light Treads Treads Light Treads Leg Aluminum Leg Wheel Wheel Hover Unit Hover Unit Flight Unit VTOL Module Utility Medium Storage Unit Device Microactuators Storage Medium Storage Unit Processor Advanced Signal Interpreter Hackware System Shield Protection Core Shielding Weapon Power Maul Energy Gun Improved Spread Laser Ballistic Gun Gauss Rifle Ballistic Cannon Mini Assault Cannon Impact Weapon Power Maul Piercing Weapon Makeshift Spear Build | -11 -10 -10 -10 -9 -8 -7 -7 ------- Run | Scr Mat Min Exi Min Mat Fac Low Slots Evolved 6 | . . . . . 4 2 . Power . | . . . . . . . . Propulsion 1 | . . . . . 1 . . Utility 3 | . . . . . 2 1 . Weapon 2 | . . . . . 1 1 . Parts Attached 68 | 6 6 1 . 6 14 16 19 Power 10 | 1 . . . 3 1 2 3 Engine 6 | 1 . . . 1 1 1 2 Core 4 | . . . . 2 . 1 1 Reactor . | . . . . . . . . Propulsion 19 | 2 2 . . 2 5 3 5 Treads 5 | . . . . 1 3 . 1 Leg 1 | . . . . 1 . . . Wheel 4 | 2 . . . . 1 . 1 Hover 3 | . 2 . . . 1 . . Flight 6 | . . . . . . 3 3 Utility 18 | 1 4 . . . 3 5 5 Device 5 | . . . . . 1 3 1 Storage 4 | 1 2 . . . . . 1 Processor 3 | . 2 . . . 1 . . Hackware 1 | . . . . . 1 . . Protection 5 | . . . . . . 2 3 Artifact . | . . . . . . . . Weapon 21 | 2 . 1 . 1 5 6 6 Energy Gun 7 | 1 . . . . 3 2 1 Energy Cannon . | . . . . . . . . Ballistic Gun 4 | 1 . . . . 1 . 2 Ballistic Cannon 3 | . . 1 . . . 2 . Launcher . | . . . . . . . . Special Weapon . | . . . . . . . . Impact Weapon 6 | . . . . 1 1 2 2 Slashing Weapon . | . . . . . . . . Piercing Weapon 1 | . . . . . . . 1 Special Melee Weapon . | . . . . . . . . Unidentified Prototypes 3 | . . . . . 1 2 . Parts Lost 34 | . 1 . . 2 4 6 21 Power 5 | . . . . . 1 1 3 Propulsion 14 | . 1 . . 2 2 3 6 Utility 6 | . . . . . . . 6 Weapon 9 | . . . . . 1 2 6 Highest Loss Streak 13 | . 1 . . 2 2 4 13 Average Slot Usage (%) 90 | . 95 100 100 97 93 97 74 Engine 5 | . 14 14 14 7 2 1 3 Core 3 | . . . . 6 6 5 . Treads 7 | . . . . 8 13 17 2 Leg 2 | . . . . 6 5 . . Wheel 1 | . 21 . . . 1 . . Hover 5 | . 6 28 28 11 2 . . Flight 2 | . . . . . . 5 3 Device 8 | . . . . . 8 13 14 Storage 8 | . 14 14 14 14 9 7 2 Processor 9 | . 10 14 14 14 9 7 7 Hackware 2 | . . . . . 8 3 . Protection 4 | . . . . . . 4 11 Energy Gun 4 | . 14 7 . . 7 9 . Ballistic Gun 5 | . 14 14 14 1 1 3 5 Ballistic Cannon 9 | . . 7 14 14 6 10 7 Impact Weapon 6 | . . . . 12 9 3 6 Piercing Weapon 1 | . . . . . . . 3 Naked Turns . | . . . . . . . . Heaviest Build 39 | 11 23 18 18 21 26 39 38 Greatest Support 62 | 20 20 12 12 20 62 62 23 Greatest Overweight (x) 12 | . 2 1 1 1 2 2 12 Average Overweight (x) 1 | . . 1 1 . . . 2 Largest Inventory Capacity 10 | 6 10 8 8 8 8 8 8 Average Capacity 6 | 5 7 8 8 8 8 8 4 Most Carried 8 | 6 8 8 8 8 8 8 8 Average Carried 6 | 2 6 7 7 7 7 7 4 Final Capacity 8 | 6 8 8 8 8 8 8 4 Final Carried 8 | 6 8 8 8 8 8 8 3 Class Distribution -------------------- 67% | Mutant 20% | Scavenger-Mutant 6% | Skirmisher 5% | Scavenger-Skirmisher Dominant Class ---------------- Mutant | -10/Materials Mutant | -10/Mines Mutant | -10/Exiles Mutant | -9/Mines Scavenger-Mutant | -8/Materials Skirmisher | -7/Factory Mutant | -7/Lower Caves Resources | -11 -10 -10 -10 -9 -8 -7 -7 ----------- Run | Scr Mat Min Exi Min Mat Fac Low Matter Collected 1932 | 198 191 . . 220 282 373 668 Remotely . | . . . . . . . . Salvage Created 1888 | . 323 . . 326 354 418 467 Parts 88 | . 16 . . 14 16 27 15 Haulers Intercepted 2 | . 1 . . . 1 . . Recyclers Shooed . | . . . . . . . . Parts Field Recycled . | . . . . . . . . Retrieved Matter . | . . . . . . . . Parts Self-Destructed 14 | . . . . . . . 14 Prevented 1 | . . . . . . . 1 Kills | -11 -10 -10 -10 -9 -8 -7 -7 ------- Run | Scr Mat Min Exi Min Mat Fac Low Combat Hostiles Destroyed 44 | . 3 . . 10 5 12 14 Melee 4 | . . . . 1 1 2 . Guns 14 | . 2 . . . 2 3 7 Cannons 20 | . . . . 8 2 6 4 AOE 1 | . 1 . . . . . . Classes Destroyed 11 | . 4 . . 3 2 2 . Worker 1 | . . . . 1 . . . Builder 3 | . . . . . . 3 . Hauler 2 | . 1 . . . 1 . . Recycler 2 | . 1 . . . 1 . . Watcher 4 | . 3 . . . . 1 . Swarmer 15 | . . . . 3 . 4 8 Grunt 16 | . 3 . . 6 2 3 2 Duelist 3 | . . . . 1 . . 2 Sentry 5 | . . . . . 2 2 1 Hunter 3 | . . . . . 1 1 1 Programmer 2 | . . . . . . 2 . Thug 1 | . . . . . 1 . . Best Kill Streak 5 | . 4 . . 3 3 5 5 Combat Bots Only 5 | . 3 . . 3 2 2 5 Max Kills in Single Turn 1 | . 1 . . 1 1 1 1 Gunslinging . | . . . . . . . . Exploded 1 | . 1 . . . . . . Melee 1 | . . . . 1 1 1 . Uniques/NPCs Destroyed . | . . . . . . . . Combat | -11 -10 -10 -10 -9 -8 -7 -7 -------- Run | Scr Mat Min Exi Min Mat Fac Low Damage Taken 4807 | . 158 . . 468 629 1024 2528 Core 862 | . 25 . . 75 50 118 594 Absorbed by Shields . | . . . . . . . . Core Remaining (%) 83 | 100 . . . 60 90 . . Volleys Fired 166 | . 23 . . 32 38 37 36 Largest 4 | . 2 . . 1 2 4 3 Hottest 215 | . 60 . . 44 119 215 151 Shots Fired 321 | . 46 . . 32 56 115 72 Gun 172 | . 46 . . . 32 57 37 Cannon 149 | . . . . 32 24 58 35 Launcher . | . . . . . . . . Special . | . . . . . . . . Kinetic 223 | . 23 . . 32 26 79 63 Thermal 75 | . . . . . 30 36 9 Explosive . | . . . . . . . . Electromagnetic 23 | . 23 . . . . . . Robot Hit Streak 15 | . 6 . . 5 7 15 6 Robot Miss Streak 10 | . 10 . . 2 9 6 6 Penetration Max 1 | . . . . . . . 1 Secondary Targets 1 | . 1 . . . . . . Max Gunslinging Chain 1 | . 1 . . . . . . Shots Hit Robots 258 | . 22 . . 32 44 97 63 Core Hits 112 | . 11 . . 10 28 34 29 Critical Hits 2 | . . . . 1 . 1 . Critical Kills . | . . . . . . . . Critical Parts Destroyed 2 | . . . . 1 . 1 . Melee Attacks 71 | . . . . 14 5 23 29 Impact 65 | . . . . 14 5 23 23 Slashing . | . . . . . . . . Piercing 6 | . . . . . . . 6 Sneak Attacks 2 | . . . . 1 1 . . Combat Hostiles . | . . . . . . . . Follow-up Attacks 1 | . . . . . . . 1 Damage Inflicted 5890 | . 419 . . 1254 885 1958 1374 Guns 1957 | . 364 . . . 412 673 508 Cannons 2302 | . . . . 611 335 924 432 Explosions 55 | . 55 . . . . . . Melee 1574 | . . . . 643 136 361 434 Ramming 2 | . . . . . 2 . . Kinetic 2953 | . 113 . . 611 335 1057 837 Thermal 1110 | . 55 . . . 412 540 103 Explosive . | . . . . . . . . Electromagnetic 251 | . 251 . . . . . . Impact 1526 | . . . . 643 136 361 386 Slashing . | . . . . . . . . Piercing 48 | . . . . . . . 48 Highest Corruption 6 | . . . . 1 5 6 6 Average Corruption 3 | . . . . 1 4 2 6 Corruption Purged . | . . . . . . . . Effects 92 | . . . . 5 25 13 49 Message Errors 17 | . . . . 1 3 5 8 Matter Fused 18 | . . . . . 7 2 9 Heat Flow Errors 10 | . . . . . 2 . 8 Energy Discharges 9 | . . . . 1 . 1 7 Data Loss (minor) 11 | . . . . . 4 1 6 Data Loss (major) 2 | . . . . . 2 . . Misfires 5 | . . . . . 2 . 3 Targeting Errors 15 | . . . . 3 3 3 6 Weapon Failures 5 | . . . . . 2 1 2 Overload Shots . | . . . . . . . . Overflow Damage 562 | . . . . 346 73 49 94 Projectiles 88 | . . . . 26 11 31 20 Explosions . | . . . . . . . . Melee 474 | . . . . 320 62 18 74 Knockbacks 20 | . . . . 7 2 5 6 Impact 4 | . . . . 2 . 1 1 Kinetic 15 | . . . . 4 2 4 5 Secondary 1 | . . . . 1 . . . Self-Inflicted Damage . | . . . . . . . . Shots . | . . . . . . . . Rammed 1 | . . . . . 1 . . Targets Rammed 1 | . . . . . 1 . . Kicked . | . . . . . . . . Crushed . | . . . . . . . . Highest Temperature 512 | . 45 . . 146 218 333 512 Average Temperature 95 | . 19 . . 52 31 110 163 Received Heat Transfer 990 | . 87 . . 177 243 114 369 Effects 12 | . . . . . 2 4 6 Shutdowns 2 | . . . . . . 1 1 Energy Bleed 1 | . . . . . . . 1 Interference 8 | . . . . . 2 3 3 Damage (minor) 1 | . . . . . . . 1 Siege Activations . | . . . . . . . . Robots Corrupted . | . . . . . . . . Combat Hostiles . | . . . . . . . . Parts Fried 8 | . 2 . . 3 2 1 . Impact Corruptions 23 | . . . . 15 1 2 5 Robots Melted . | . . . . . . . . Combat Hostiles . | . . . . . . . . Parts Melted 2 | . . . . . 1 1 . Heat Transferred 1294 | . 50 . . . 470 689 85 Parts Sabotaged . | . . . . . . . . Parts Stolen . | . . . . . . . . Parts Stripped . | . . . . . . . . Power Chain Reactions 1 | . 1 . . . . . . Missiles Intercepted . | . . . . . . . . Alert | -11 -10 -10 -10 -9 -8 -7 -7 ------- Run | Scr Mat Min Exi Min Mat Fac Low Peak Influence 195 | . 193 75 . 195 111 141 . Average Influence 44 | . 72 75 . 52 42 30 . Maximum Alert Level . | . . . . . . . . Low Security (%) 100 | 100 100 100 . 100 100 100 . Level 1 . | . . . . . . . . Level 2 . | . . . . . . . . Level 3 . | . . . . . . . . Level 4 . | . . . . . . . . Level 5 . | . . . . . . . . High Security . | . . . . . . . . Max Security . | . . . . . . . . Squads Dispatched 5 | . 1 1 . . . 3 . Investigation 2 | . . 1 . . . 1 . Extermination 2 | . . . . . . 2 . Reinforcement 1 | . 1 . . . . . . Assault . | . . . . . . . . Garrison . | . . . . . . . . Intercept . | . . . . . . . . Construction Impeded . | . . . . . . . . Haulers Reinforced . | . . . . . . . . Stealth | -11 -10 -10 -10 -9 -8 -7 -7 --------- Run | Scr Mat Min Exi Min Mat Fac Low Distress Signals 4 | . 2 . . . 1 1 . Communications Jammed . | . . . . . . . . Distress Signals . | . . . . . . . . Times Spotted 82 | . 13 . . 11 14 20 24 Peak Tracking Total 6 | . 4 . . 3 4 4 6 Tactical Retreats 6 | . . . . . . 4 2 Traps | -11 -10 -10 -10 -9 -8 -7 -7 ------- Run | Scr Mat Min Exi Min Mat Fac Low Traps Triggered 7 | . . . . 2 3 2 . Indirectly . | . . . . . . . . Trap Hack Attempts . | . . . . . . . . Triggered . | . . . . . . . . Disarmed . | . . . . . . . . Reprogrammed . | . . . . . . . . Reused . | . . . . . . . . Traps Extracted . | . . . . . . . . Installed . | . . . . . . . . Triggered . | . . . . . . . . Machines | -11 -10 -10 -10 -9 -8 -7 -7 ---------- Run | Scr Mat Min Exi Min Mat Fac Low Machines Disabled 4 | . 2 . . . 1 1 . Max in Single Turn 1 | . 1 . . . 1 1 . Garrison Access 1 | . . . . . . 1 . Machines Sabotaged . | . . . . . . . . Garrisons Compromised . | . . . . . . . . Overloaded Fab Kills . | . . . . . . . . Fab Network Shutdowns . | . . . . . . . . Hacking | -11 -10 -10 -10 -9 -8 -7 -7 --------- Run | Scr Mat Min Exi Min Mat Fac Low Machines Accessed 20 | . 4 1 2 1 6 5 1 Terminals 10 | . 3 . . . 3 4 . Fabricators . | . . . . . . . . Repair Stations 1 | . . . . . 1 . . Recycling Units 2 | . 1 . . . 1 . . Scanalyzers 1 | . . . . . 1 . . Garrison Access 1 | . . . . . . 1 . Total Hacks 51 | . 10 1 3 1 19 16 1 Successful 32 | . 6 1 3 1 11 9 1 Failed 19 | . 4 . . . 8 7 . Catastrophic 6 | . 1 . . . 3 2 . Database Lockouts . | . . . . . . . . Manual 24 | . 3 . 1 . 9 11 . Terminals 32 | . 8 . . . 9 15 . Fabricators . | . . . . . . . . Repair Stations 2 | . . . . . 2 . . Recycling Units 5 | . 2 . . . 3 . . Scanalyzers 5 | . . . . . 5 . . Garrison Access 1 | . . . . . . 1 . Terminal Hacks 20 | . 4 1 3 1 3 7 1 Record 2 | . . . 2 . . . . Part Schematic 1 | . . . . . . 1 . Robot Schematic 1 | . . . . . . 1 . Robot Analysis 1 | . 1 . . . . . . Prototype ID Bank 3 | . 2 . . . . 1 . Open Door 3 | . . 1 . 1 . . 1 Branch Access Points 2 | . . . . . 1 1 . Unreport Threat 5 | . . . . . 2 3 . Registered Components 1 | . 1 . . . . . . EX-Prototype ID Bank 1 | . . . 1 . . . . Fabricator Hacks . | . . . . . . . . Repair Station Hacks 2 | . . . . . 2 . . Scan Component 1 | . . . . . 1 . . Repair 1 | . . . . . 1 . . Recycling Unit Hacks 1 | . . . . . 1 . . Report Inventory 1 | . . . . . 1 . . Scanalyzer 4 | . . . . . 4 . . Insert Component 1 | . . . . . 1 . . Analyze 3 | . . . . . 3 . . Garrison Access Hacks 1 | . . . . . . 1 . Seal Access 1 | . . . . . . 1 . Unauthorized Hacks 11 | . 4 . . . 3 4 . Terminals 2 | . 1 . . . . 1 . Botnet 2 | . 1 . . . . 1 . Fabricators . | . . . . . . . . Repair Stations . | . . . . . . . . Recycling Units 2 | . 1 . . . 1 . . Monitor 1 | . 1 . . . . . . Mask 1 | . . . . . 1 . . Scanalyzers . | . . . . . . . . Garrison Access . | . . . . . . . . Data Cores Recovered . | . . . . . . . . Used . | . . . . . . . . Hacking Detections 13 | . 4 . . . 5 4 . Full Trace Events 1 | . . . . . . 1 . Feedback Events . | . . . . . . . . Feedback Blocked . | . . . . . . . . Robot Schematics Acquired 1 | . . . . . . 1 . Robots Built . | . . . . . . . . Matter . | . . . . . . . . Time . | . . . . . . . . Total Robot Build Rating . | . . . . . . . . Part Schematics Acquired 2 | . . . . . 1 1 . Parts Built . | . . . . . . . . Matter . | . . . . . . . . Time . | . . . . . . . . Total Part Build Rating . | . . . . . . . . Parts Repaired 1 | . . . . . 1 . . Time 70 | . . . . . 70 . . Parts Recycled . | . . . . . . . . Recycled Matter . | . . . . . . . . Retrieved Matter . | . . . . . . . . Retrieved Components . | . . . . . . . . Parts Scanalyzed 1 | . . . . . 1 . . Part Schematics Acquired 1 | . . . . . 1 . . Parts Damaged . | . . . . . . . . Bothacking | -11 -10 -10 -10 -9 -8 -7 -7 ------------ Run | Scr Mat Min Exi Min Mat Fac Low Used RIF Installer . | . . . . . . . . Robots Hacked . | . . . . . . . . Non-combat . | . . . . . . . . Combat . | . . . . . . . . Robot Hacks Applied . | . . . . . . . . Relay Couplers Released . | . . . . . . . . Robots Rewired 2 | . . . . . . . 2 Allies Hacked . | . . . . . . . . Hacks Repelled . | . . . . . . . . Allies | -11 -10 -10 -10 -9 -8 -7 -7 -------- Run | Scr Mat Min Exi Min Mat Fac Low Total Allies 3 | . . . . 1 . . 2 Largest Group 2 | . . . . 1 1 . 2 Highest-Rated Group 52 | . . . . 31 31 . 52 Highest-Rated Ally 32 | . . . . 31 31 . 32 Total Orders . | . . . . . . . . Ally Attacks 27 | . . . . . . . 27 Total Damage 670 | . . . . . . . 670 Kills 5 | . . . . . . . 5 Allies Corrupted . | . . . . . . . . Allies Melted . | . . . . . . . . Intel | -11 -10 -10 -10 -9 -8 -7 -7 ------- Run | Scr Mat Min Exi Min Mat Fac Low Robot Analysis Total 1 | . 1 . . . . . . Derelict Logs Recovered 3 | . . . . 2 . . 1 Drone Launches . | . . . . . . . . Drone Recoveries . | . . . . . . . . Exploration | -11 -10 -10 -10 -9 -8 -7 -7 ------------- Run | Scr Mat Min Exi Min Mat Fac Low Turns Passed 6025 | 66 283 125 543 1065 1032 1168 1743 Spaces Moved 3108 | 66 218 102 467 647 450 502 656 Core 139 | 6 . . . . . . 133 Treads 1443 | . . . . 297 442 397 307 Legs 8 | . . . . . 8 . . Wheels 297 | 60 175 . . . . . 62 Hover 962 | . 43 102 467 350 . . . Flight 259 | . . . . . . 105 154 Fastest Speed 50 | 50 80 116 116 116 152 114 90 Average Speed 158 | 77 88 116 116 143 170 162 231 Slowest Speed 650 | 80 185 116 116 180 180 194 650 Overloaded Moves . | . . . . . . . . Propulsion Burnouts . | . . . . . . . . Robots Hopped . | . . . . . . . . Cave-ins Triggered . | . . . . . . . . Exploration Rate (%) 49 | 4 38 30 92 97 39 15 80 Regions Visited 7 Branch Regions 4 Pre-discovered Areas . | . . . . . . . . Known Exits Taken 6 | . 1 1 1 1 1 1 . Unknown Exits Taken 1 | 1 . . . . . . . Scrap Searched 5 | . . 1 . 2 . . 2 Spaces Dug 6 | . . . . . 1 5 . Terrain Destroyed 26 | . . . . 3 4 11 8 Melee 6 | . . . . . 1 5 . Projectile 20 | . . . . 3 3 6 8 AOE . | . . . . . . . . Actions | -11 -10 -10 -10 -9 -8 -7 -7 --------- Run | Scr Mat Min Exi Min Mat Fac Low Total 3826 | 77 261 110 468 740 654 745 771 Wait 343 | . 6 1 . 31 133 156 16 Move 3101 | 65 217 101 466 646 449 501 656 Hop . | . . . . . . . . Pick Up 36 | 6 5 3 1 4 7 5 5 Fast Attach 39 | 6 4 1 . 3 7 7 11 Attach 18 | . . . . 1 4 5 8 Detach . | . . . . . . . . Swap 11 | . 2 . . 2 3 4 . Drop 33 | . 4 4 1 7 7 7 3 Fire 166 | . 23 . . 32 38 37 36 Melee 70 | . . . . 14 5 23 28 Ram . | . . . . . . . . Kick . | . . . . . . . . Crush 1 | . . . . . 1 . . Escape Stasis . | . . . . . . . . Rewire 8 | . . . . . . . 8 Trap . | . . . . . . . . Miscellaneous . | . . . . . . . . Route ------- -11/Scrapyard -10/Materials (discovered 3 exits: *Mat x2 / *Min) -10/Mines -10/Exiles (discovered 2 exits: *Min x2) -9/Mines (discovered 2 exits: *Mat x2) -8/Materials (discovered 2 exits: *Fac x2) -7/Factory (discovered 3 exits: Sto / *Low x2) -7/Lower Caves History --------- Turn | Location | Event 6 | -11/Scrapyard | Discovered new exit (range 16) 67 | -11/Scrapyard | Entered Materials 89 | -10/Materials | Discovered new exit (range 13) 130 | -10/Materials | Discovered new exit (range 16) 187 | -10/Materials | Discovered new exit (range 14) 312 | -10/Materials | Identified exit to Materials 320 | -10/Materials | Build established: Mutant 349 | -10/Materials | Identified exit to Mines 350 | -10/Materials | Entered Mines 406 | -10/Mines | Met a Derelict shopkeep closing up shop 471 | -10/Mines | Deemed a non-threat by the Exiles lab entrance 471 | -10/Mines | Discovered new exit (range 5) 474 | -10/Mines | Identified exit to Exiles 475 | -10/Mines | Entered Exiles 493 | -10/Exiles | Discovered new exit (range 15) 508 | -10/Exiles | Identified exit to Mines 530 | -10/Exiles | Met 8R-AWN 550 | -10/Exiles | Met EX-HEX 607 | -10/Exiles | Met EX-DEC 626 | -10/Exiles | Visited The Gauntlet 801 | -10/Exiles | Met EX-BIN 819 | -10/Exiles | Aligned with FarCom system 820 | -10/Exiles | Given EX-Vault access code 848 | -10/Exiles | Opened EX-Vault 905 | -10/Exiles | Found Latent Energy Streamer 931 | -10/Exiles | Warned to stay clear of 0b10 Research branches 1004 | -10/Exiles | Discovered exit to Mines (range 14) 1018 | -10/Exiles | Left Exiles lab with Latent Energy Streamer 1018 | -10/Exiles | Entered Mines 1053 | -9/Mines | Learned Materials emergency access door positions 1104 | -9/Mines | A weapon hastily lodged in a ceiling crevice suddenly fell to the ground 1176 | -9/Mines | Learned 8 Materials zone layouts 1183 | -9/Mines | Met a Derelict who couldn't figure out how to use a Trap Extractor 1974 | -9/Mines | Discovered new exit (range 10) 1990 | -9/Mines | Identified exit to Materials 2047 | -9/Mines | Discovered exit to Materials (range 6) 2050 | -9/Mines | Received a Mining Laser from a helpful Derelict 2083 | -9/Mines | Entered Materials 2083 | -8/Materials | Accompanied by 1 ally 2083 | -8/Materials | Evolved 4 slots: Propulsion x1, Utility x2, Weapon x1 2084 | -8/Materials | Identified exit to Factory 2678 | -8/Materials | Build established: Scavenger-Mutant 2894 | -8/Materials | Repaired Imp. Spread Laser? 3115 | -8/Materials | Entered Factory 3115 | -7/Factory | Evolved 2 slots: Utility x1, Weapon x1 3603 | -7/Factory | Identified exit to Storage 3603 | -7/Factory | Identified exit to Lower Caves 4089 | -7/Factory | Lost 4 parts (1p2n1w) 4283 | -7/Factory | Entered Lower Caves 4330 | -7/Lower Caves | Attracted the attention of an 0b10 outpost 4384 | -7/Lower Caves | Core integrity fell below 50% 4450 | -7/Lower Caves | Lost 13 parts (2p3n4u4w) 4611 | -7/Lower Caves | Encountered a Warlord checkpoint 4640 | -7/Lower Caves | Build established: Mutant 4658 | -7/Lower Caves | Learned Factory emergency access door positions 4801 | -7/Lower Caves | Core integrity fell below 20% 6026 | -7/Lower Caves | Destroyed by S-27 Virus with Autogun Last Messages --------------- 05869_ System corrupted: Heat flow error (+240). 05884_ System corrupted: Matter fused (-5). 05923_ System corrupted: Matter fused (-6). 05924_ Slug penetrates H-55 Commando. 05927_ Penetrated by Slug. 05927_ Imp. Medium Armor Plating destroyed. 05927_ System corrupted: Gauss Rifle jammed. 05930_ Penetrated by Slug. 05930_ Slug penetrates H-55 Commando. 05930_ H-55 Commando knocked back. 05933_ Slug penetrates H-55 Commando. 05933_ H-55 Commando destroyed. 05943_ Acquired 34 matter. 06011_ Critical hit. 06011_ Lgt. Deuterium Engine destroyed. 06018_ Gauss Rifle destroyed. 06018_ Core Shielding destroyed. 06021_ VTOL Module destroyed. 06022_ Mak. Spear follow-up attack on S-27 Virus. 06024_ S-27 Virus knocked back. Map ----- +----------------------------------------------------+ | ???????????????# #??????????????? | | ???????????????# #?????????????????? | | ???????????????## ### #?????????????????? | | ???????????????## ##?## ##?####???????????? | | ??????????????## #???## ### #??###??????? | | ??????????????# #???## ## #??# ###????? | | ??????????????## #?### ## #??# ##???? | | ???????????????## ### ### #??# #???? | | ???????????????## ## ## #??# ##??? | | ??????????????## ## ##?# ###? | | ??????????????# ## ## #### ## | | ??????????????# ##### ## ## | | ??????????????#### #??## ### | | ????????????????## #??# ##?## | | ????????????????# #??# ##???# | | ????????????????# ###??## ##????# | | ????????????????## #####??# #####????? | | ?????????????????##### ###### #####???????? | | ?????????????????????# ##### ##??????????? # | | ?????????????????????# #??????????? ## | | ??????????????????????# #?????????? ??? | | ???????????????????#### ##?????????# ???? | | ???????????????????# #####?????? ????? | | ???????????????????# ### #?????? ????? | | ???????????????????# ## ##### ?????? | | ??????????????????????##@ ###? ?? | | ???????????????????????##sss #? ### ??? | | ????????????????????? s ##? #??? ??? | | ????????????????? #??# ##?????????? | | ???????????????# #### #??#####??????????? | | ???????????????# ????######?????????????????? | | ???????????????#####????????????????????????????? | | ????????????????????????????????????????????????? | | ????????????????????????????????????????????????? | | ????????????????????????????????????????????????? | | ????????????????????????????????????????????????? | | ????????????????????????????????????????????????? | | ????????????????????????????????????????????????? | | ????????????????????????????????????????????????? | | ????????????????????????????????????????????????? | | ????????????????????????????????????????????????? | | ????????????????????????????????????????????????? | | ????????????????????????????????????????????????? | | ????????????????????????????????????????????????? | | ????????????????????????????????????????????????? | | ????????????????????????????????????????????????? | | ????????????????????????????????????????????????? | | ????????????????????????????????????????????????? | | ????????????????????????????????????????????????? | | ????????????????????????????????????????????????? | +----------------------------------------------------+ Best States ------------- Heat Dissipation 48 Energy Generation 16 Energy Capacity 400 Matter Stores 300 Matter Capacity 300 Sight Range 18 Terrain Scan Density 10 Jamming Range 8 Armor Coverage 300 Core Shielding 20 Melee Speed Boost 20 Evasion (%) 44 Recoil Reduction 3 Defensive Hacking 10 Item Schematics ----------------- Actuator Array | -8/Materials | Scanalyzed Flexi-carbon Leg | -7/Factory | Hacked Robot Schematics ------------------ S-27 Virus | -7/Factory | Hacked Fabricated ------------ Nothing Alien Tech Used ----------------- None Achievements -------------- Please Form A Line Universal Adapter Challenges ------------ None Game ------ Seed LauncherSuspensionNegator Manual? 0 Play Time 00:54:57 Cumulative 24.2 hours Start 2020.01.17 @ 15:08:46 End 2020.01.17 @ 16:05:08 Sessions 1 Manual Loads 0 Difficulty Rogue Special Mode None Game No. 15 Rogue 15 Adventurer 0 Explorer 0 Win Type - Total 0 Types 0/0/0/0/0/0/0 Lore% 42 Gallery% 23 Achievement% 34 Wizard Run 0 Options --------- ASCII 0 Keyboard 0 Movement Numpad Keybinds 0 Fullscreen 1 Font 14/SmallcapsGlow Map View 84x54 Tactical HUD 1 Map Filters NONE Filters NONE Steam 1 RUN: bf70e065-3c89-4db9-b94a-620d2fc1807f